[Event "FIDE-Online-Steinitz-Memorial-Women"]
[White "Stefanova, Antoaneta"]
[Black "Sebag, Marie"]
[Site "Internet"]
[Round "17"]
[Annotator "RC"]
[Result "1/2-1/2"]
[Date "2020.05.17"]
[WhiteElo "2485"]
[BlackElo "2482"]
[PlyCount "132"]
[TimeControl "180+2"]

1. Nf3 d5 2. g3 {[%emt 0:0:4]} Nf6 {[%emt 0:0:6]} 3. Bg2 {[%emt 0:0:2]} g6 {[%emt 0:0:9]} 4. 0-0 {[%emt 0:0:3]} Bg7 {[%emt 0:0:1]} 5. d4 {[%emt 0:0:1]
} 0-0 {[%emt 0:0:2]} 6. Bf4 {[%emt 0:0:1]} c6 {[%emt 0:0:5]
} 7. Qc1 {[%emt 0:0:3]} Bf5 {[%emt 0:0:5]} 8. c4 {[%emt 0:0:4]} Nbd7 {[%emt 0:0:1]
} 9. Rd1 {[%emt 0:0:12]} Ne4 {[%emt 0:0:17]} 10. h3 {[%emt 0:0:0]} Qb6 {[%emt 0:0:12]} 11. c5 {[%emt 0:0:36]} Qa6 {[%emt 0:0:12]} 12. Bf1 {[%emt 0:0:1]} b6 {[%emt 0:0:1]} 13. b4 {[%emt 0:0:5]} bxc5 {[%emt 0:0:0]} 14. bxc5 {[%emt 0:0:2]} Ndxc5 {[%emt 0:0:6]} 15. e3 {[%emt 0:0:11]
} Qb7 {[%emt 0:0:11]} 16. g4 {[%emt 0:0:7]} Be6 {[%emt 0:0:10]} 17. Be5 {[%emt 0:0:9]
} Nd7 {[%emt 0:0:5]} 18. Bxg7 {[%emt 0:0:2]} Kxg7 {[%emt 0:0:0]} 19. Nc3 {[%emt 0:0:4]} c5 {[%emt 0:0:11]} 20. Nxe4 {[%emt 0:0:4]} dxe4 {[%emt 0:0:6]} 21. dxc5 {[%emt 0:0:11]} Rac8 {[%emt 0:0:20]} 22. Qc3+ {[%emt 0:0:4]} Kg8 {[%emt 0:0:3]} 23. Nd4 {[%emt 0:0:15]} Nxc5 {[%emt 0:0:0]} 24. Qa3 {[%emt 0:0:6]} Rc7 {[%emt 0:0:12]} 25. Rab1 {[%emt 0:0:6]} Qa8 {[%emt 0:0:13]} 26. Nb5 {[%emt 0:0:4]} Rcc8 {[%emt 0:0:3]} 27. Rdc1 {[%emt 0:0:9]
} Nd3 {[%emt 0:0:4]} 28. Nc7 {[%emt 0:0:6]} Rxc7 {[%emt 0:0:0]} 29. Rxc7 {[%emt 0:0:2]} Ne5 {[%emt 0:0:2]} 30. Qxe7 {[%emt 0:0:11]} Nf3+ {[%emt 0:0:1]} 31. Kh1 {[%emt 0:0:6]} Qd5 {[%emt 0:0:2]} 32. Bg2 {[%emt 0:0:7]
} h5 {[%emt 0:0:3]} 33. Bxf3 {[%emt 0:0:4]} exf3 {[%emt 0:0:0]} 34. Qh4 {[%emt 0:0:3]} hxg4 {[%emt 0:0:3]} 35. hxg4 {[%emt 0:0:10]} Kg7 {[%emt 0:0:1]} 36. Kg1 {[%emt 0:0:2]} Rh8 {[%emt 0:0:5]} 37. Qg3 {[%emt 0:0:1]
} Qg5 {[%emt 0:0:2]} 38. Rb4 {[%emt 0:0:5]} Qd5 {[%emt 0:0:0]} 39. Rd4 {[%emt 0:0:3]} Qxa2 {[%emt 0:0:2]} 40. Qe5+ {[%emt 0:0:1]} Kh7 {[%emt 0:0:2]} 41. Qh2+ {[%emt 0:0:2]} Kg7 {[%emt 0:0:2]} 42. Qe5+ {[%emt 0:0:1]
} Kh7 {[%emt 0:0:1]} 43. g5 {[%emt 0:0:2]} Qb1+ {[%emt 0:0:0]} 44. Kh2 {[%emt 0:0:2]} Kg8+ {[%emt 0:0:2]} 45. Kg3 {[%emt 0:0:3]} Rh3+ {[%emt 0:0:10]} 46. Kf4 {[%emt 0:0:1]} Rh4+ {[%emt 0:0:1]} 47. Kxf3 {[%emt 0:0:8]
} Rh3+ {[%emt 0:0:8]} 48. Kf4 {[%emt 0:0:2]} Rh4+ {[%emt 0:0:0]} 49. Kf3 {[%emt 0:0:1]} Rh3+ {[%emt 0:0:1]} 50. Kf4 {[%emt 0:0:12]} Kh7 {[%emt 0:0:2]} 51. Qxe6 {[%emt 0:0:5]} Rh4+ {[%emt 0:0:3]} 52. Ke5 {[%emt 0:0:3]
} Qb5+ {[%emt 0:0:2]} 53. Rd5 {[%emt 0:0:2]} Qb2+ {[%emt 0:0:0]} 54. Kd6 {[%emt 0:0:3]} Qb6+ {[%emt 0:0:3]} 55. Rc6 {[%emt 0:0:1]} Qb4+ {[%emt 0:0:5]} 56. Rdc5 {[%emt 0:0:4]} fxe6 {[%emt 0:0:0]} 57. Rc7+ {[%emt 0:0:1]} Kg8 {[%emt 0:0:2]} 58. Rc8+ {[%emt 0:0:1]} Kf7 {[%emt 0:0:0]} 59. R8c7+ {[%emt 0:0:1]} Ke8 {[%emt 0:0:1]} 60. Rc8+ {[%emt 0:0:0]} Kf7 {[%emt 0:0:1]} 61. R8c7+ {[%emt 0:0:1]} Kg8 {[%emt 0:0:1]} 62. Rc8+ {[%emt 0:0:0]} Kh7 {[%emt 0:0:1]} 63. R8c7+ {[%emt 0:0:1]} Kh8 {[%emt 0:0:0]
} 64. Rc8+ {[%emt 0:0:1]} Kg7 {[%emt 0:0:1]} 65. R8c7+ {[%emt 0:0:1]
} Kf8 {[%emt 0:0:1]} 66. Rc8+ {[%emt 0:0:1]} Kf7 {[%emt 0:0:0]} 1/2-1/2

[Event "FIDE-Online-Steinitz-Memorial-Women"]
[White "Khademalsharieh, Sarasadat"]
[Black "Paehtz, Elisabeth"]
[Site "Internet"]
[Round "17"]
[Annotator "RC"]
[Result "0-1"]
[Date "2020.05.17"]
[WhiteElo "2431"]
[BlackElo "2396"]
[PlyCount "150"]
[TimeControl "180+2"]

1. Nf3 Nf6 2. c4 {[%emt 0:0:6]} g6 {[%emt 0:0:5]} 3. d4 {[%emt 0:0:2]} Bg7 {[%emt 0:0:1]} 4. g3 {[%emt 0:0:1]} 0-0 {[%emt 0:0:1]} 5. Bg2 {[%emt 0:0:1]
} d6 {[%emt 0:0:1]} 6. 0-0 {[%emt 0:0:1]} Nc6 {[%emt 0:0:1]
} 7. Nc3 {[%emt 0:0:0]} e5 {[%emt 0:0:1]} 8. dxe5 {[%emt 0:0:3]} dxe5 {[%emt 0:0:1]
} 9. Bg5 {[%emt 0:0:4]} Be6 {[%emt 0:0:2]} 10. Qa4 {[%emt 0:0:0]} Qc8 {[%emt 0:0:4]} 11. Nd2 {[%emt 0:0:2]} Nd7 {[%emt 0:0:8]} 12. Qc2 {[%emt 0:0:16]} f6 {[%emt 0:0:3]} 13. Be3 {[%emt 0:0:2]} f5 {[%emt 0:0:0]} 14. Nd5 {[%emt 0:0:18]} Kh8 {[%emt 0:0:7]} 15. Nb3 {[%emt 0:0:7]} e4 {[%emt 0:0:14]} 16. Rad1 {[%emt 0:0:12]} Nde5 {[%emt 0:0:3]} 17. Nc5 {[%emt 0:0:6]
} Bg8 {[%emt 0:0:1]} 18. h3 {[%emt 0:0:5]} b6 {[%emt 0:0:3]
} 19. Nb3 {[%emt 0:0:9]} a5 {[%emt 0:0:8]} 20. f3 {[%emt 0:0:5]} exf3 {[%emt 0:0:10]
} 21. exf3 {[%emt 0:0:3]} Bxd5 {[%emt 0:0:13]} 22. cxd5 {[%emt 0:0:3]
} Nb4 {[%emt 0:0:1]} 23. Qb1 {[%emt 0:0:3]} Nc4 {[%emt 0:0:0]} 24. Bd4 {[%emt 0:0:24]} Qd7 {[%emt 0:0:2]} 25. Qc1 {[%emt 0:0:5]} Bxd4+ {[%emt 0:0:12]} 26. Rxd4 {[%emt 0:0:2]} Nd6 {[%emt 0:0:9]} 27. a3 {[%emt 0:0:11]
} Na6 {[%emt 0:0:2]} 28. Rfd1 {[%emt 0:0:4]} Rae8 {[%emt 0:0:0]} 29. Qc3 {[%emt 0:0:1]} Nb5 {[%emt 0:0:7]} 30. Qd3 {[%emt 0:0:6]} Nxd4 {[%emt 0:0:2]} 31. Nxd4 {[%emt 0:0:1]} Nc5 {[%emt 0:0:7]} 32. Qc3 {[%emt 0:0:1]
} Na4 {[%emt 0:0:11]} 33. Qc2 {[%emt 0:0:5]} Nc5 {[%emt 0:0:0]} 34. b4 {[%emt 0:0:2]} axb4 {[%emt 0:0:2]} 35. axb4 {[%emt 0:0:4]} Nb7 {[%emt 0:0:3]} 36. Ne6 {[%emt 0:0:4]} Rf7 {[%emt 0:0:8]} 37. Qc3+ {[%emt 0:0:7]
} Kg8 {[%emt 0:0:1]} 38. Bf1 {[%emt 0:0:3]} Nd6 {[%emt 0:0:0]} 39. h4 {[%emt 0:0:2]} Rxe6 {[%emt 0:0:4]} 40. dxe6 {[%emt 0:0:1]} Qxe6 {[%emt 0:0:1]} 41. Re1 {[%emt 0:0:3]} Qf6 {[%emt 0:0:4]} 42. Qxf6 {[%emt 0:0:27]
} Rxf6 {[%emt 0:0:2]} 43. Rc1 {[%emt 0:0:2]} Rf7 {[%emt 0:0:0]} 44. Bd3 {[%emt 0:0:3]} Re7 {[%emt 0:0:3]} 45. Kf2 {[%emt 0:0:1]} Kg7 {[%emt 0:0:1]} 46. Rc6 {[%emt 0:0:2]} Kf6 {[%emt 0:0:3]} 47. Rc2 {[%emt 0:0:2]
} Nf7 {[%emt 0:0:7]} 48. b5 {[%emt 0:0:1]} Ne5 {[%emt 0:0:0]} 49. Be2 {[%emt 0:0:3]} Ke6 {[%emt 0:0:3]} 50. Rc1 {[%emt 0:0:6]} Kd6 {[%emt 0:0:2]} 51. Rc2 {[%emt 0:0:3]} Kd7 {[%emt 0:0:7]} 52. Rd2+ {[%emt 0:0:1]
} Kc8 {[%emt 0:0:4]} 53. Rc2 {[%emt 0:0:1]} Nd7 {[%emt 0:0:0]} 54. Ra2 {[%emt 0:0:4]} Nc5 {[%emt 0:0:6]} 55. Rc2 {[%emt 0:0:2]} Kd7 {[%emt 0:0:1]} 56. Rd2+ {[%emt 0:0:1]} Ke6 {[%emt 0:0:1]} 57. Bc4+ {[%emt 0:0:2]
} Kf6 {[%emt 0:0:1]} 58. Be2 {[%emt 0:0:1]} Rd7 {[%emt 0:0:0]} 59. Ra2 {[%emt 0:0:3]} Nb7 {[%emt 0:0:6]} 60. Rc2 {[%emt 0:0:4]} Nd6 {[%emt 0:0:1]} 61. Bd3 {[%emt 0:0:3]} Re7 {[%emt 0:0:2]} 62. Be2 {[%emt 0:0:1]
} Ke5 {[%emt 0:0:2]} 63. Bd3 {[%emt 0:0:2]} Kd4 {[%emt 0:0:0]} 64. Be2 {[%emt 0:0:1]} Nb7 {[%emt 0:0:3]} 65. Rd2+ {[%emt 0:0:4]} Kc3 {[%emt 0:0:1]} 66. Rd3+ {[%emt 0:0:1]} Kb4 {[%emt 0:0:2]} 67. Rd4+ {[%emt 0:0:1]
} Ka5 {[%emt 0:0:5]} 68. Rd1 {[%emt 0:0:3]} Nd6 {[%emt 0:0:0]} 69. Ra1+ {[%emt 0:0:1]} Kb4 {[%emt 0:0:1]} 70. Rb1+ {[%emt 0:0:1]} Kc3 {[%emt 0:0:2]} 71. Rc1+ {[%emt 0:0:1]} Kb2 {[%emt 0:0:2]} 72. Rd1 {[%emt 0:0:5]
} Re5 {[%emt 0:0:2]} 73. Rd2+ {[%emt 0:0:1]} Kb3 {[%emt 0:0:0]} 74. Rd3+ {[%emt 0:0:3]} Kb4 {[%emt 0:0:1]} 75. Rd5 {[%emt 0:0:1]} Rxd5 {[%emt 0:0:2]} 0-1

[Event "FIDE-Online-Steinitz-Memorial-Women"]
[White "Kosteniuk, Alexandra"]
[Black "Stefanova, Antoaneta"]
[Site "Internet"]
[Round "18"]
[Annotator "RC"]
[Result "0-1"]
[Date "2020.05.17"]
[WhiteElo "2521"]
[BlackElo "2485"]
[PlyCount "58"]
[TimeControl "180+2"]

1. Nf3 d5 2. g3 {[%emt 0:0:4]} g6 {[%emt 0:0:4]} 3. Bg2 {[%emt 0:0:1]} Bg7 {[%emt 0:0:2]} 4. d4 {[%emt 0:0:1]} Nf6 {[%emt 0:0:3]} 5. 0-0 {[%emt 0:0:1]
} 0-0 {[%emt 0:0:1]} 6. c4 {[%emt 0:0:1]} c6 {[%emt 0:0:2]} 7. Qb3 {[%emt 0:0:2]} Qb6 {[%emt 0:0:4]} 8. Nc3 {[%emt 0:0:2]} Bf5 {[%emt 0:0:12]
} 9. cxd5 {[%emt 0:0:12]} Qxb3 {[%emt 0:0:2]} 10. axb3 {[%emt 0:0:1]
} Nxd5 {[%emt 0:0:4]} 11. Ne5 {[%emt 0:0:10]} Be6 {[%emt 0:0:0]} 12. Na4 {[%emt 0:0:20]} Na6 {[%emt 0:0:8]} 13. Bd2 {[%emt 0:0:54]} Ndb4 {[%emt 0:0:7]} 14. Bxb4 {[%emt 0:0:1]} Nxb4 {[%emt 0:0:3]} 15. Nc5 {[%emt 0:0:0]
} Nc2 {[%emt 0:0:18]} 16. Nxe6 {[%emt 0:0:11]} fxe6 {[%emt 0:0:0]} 17. Rad1 {[%emt 0:0:22]} Nxd4 {[%emt 0:0:4]} 18. Rxd4 {[%emt 0:0:0]} Bxe5 {[%emt 0:0:2]} 19. Re4 {[%emt 0:0:5]} Bxb2 {[%emt 0:0:3]} 20. Rxe6 {[%emt 0:0:1]} Bf6 {[%emt 0:0:2]} 21. e4 {[%emt 0:0:7]} Kf7 {[%emt 0:0:5]
} 22. Bh3 {[%emt 0:0:1]} Bd4 {[%emt 0:0:19]} 23. Kg2 {[%emt 0:0:0]} a5 {[%emt 0:0:3]} 24. f4 {[%emt 0:0:2]} a4 {[%emt 0:0:4]} 25. f5 {[%emt 0:0:14]} gxf5 {[%emt 0:0:10]} 26. Bxf5 {[%emt 0:0:20]} a3 {[%emt 0:0:0]} 27. Rh6 {[%emt 0:0:15]} Ke8 {[%emt 0:0:6]} 28. Rxh7 {[%emt 0:0:6]} a2 {[%emt 0:0:11]} 29. Bg6+ {[%emt 0:0:2]} Kd7 {[%emt 0:0:2]} 0-1

[Event "FIDE-Online-Steinitz-Memorial-Women"]
[White "Sebag, Marie"]
[Black "Khademalsharieh, Sarasadat"]
[Site "Internet"]
[Round "18"]
[Annotator "RC"]
[Result "0-1"]
[Date "2020.05.17"]
[WhiteElo "2482"]
[BlackElo "2431"]
[PlyCount "96"]
[TimeControl "180+2"]

1. e4 e5 2. Nf3 {[%emt 0:0:5]} Nc6 {[%emt 0:0:4]} 3. Bb5 {[%emt 0:0:2]} a6 {[%emt 0:0:3]} 4. Ba4 {[%emt 0:0:1]} Nf6 {[%emt 0:0:1]} 5. 0-0 {[%emt 0:0:2]
} b5 {[%emt 0:0:1]} 6. Bb3 {[%emt 0:0:1]} Bc5 {[%emt 0:0:1]
} 7. a4 {[%emt 0:0:3]} Rb8 {[%emt 0:0:2]} 8. c3 {[%emt 0:0:4]} d6 {[%emt 0:0:1]
} 9. d4 {[%emt 0:0:2]} Bb6 {[%emt 0:0:1]} 10. a5 {[%emt 0:0:0]} Ba7 {[%emt 0:0:3]} 11. h3 {[%emt 0:0:3]} Bb7 {[%emt 0:0:4]} 12. Re1 {[%emt 0:0:2]} 0-0 {[%emt 0:0:4]} 13. Bg5 {[%emt 0:0:15]} h6 {[%emt 0:0:0]} 14. Bh4 {[%emt 0:0:2]} exd4 {[%emt 0:0:12]} 15. cxd4 {[%emt 0:0:7]} g5 {[%emt 0:0:14]} 16. Bg3 {[%emt 0:0:3]} Ne7 {[%emt 0:0:1]} 17. Nbd2 {[%emt 0:0:8]
} Ng6 {[%emt 0:0:10]} 18. Rc1 {[%emt 0:0:11]} Rc8 {[%emt 0:0:0]} 19. Qc2 {[%emt 0:0:7]} Kg7 {[%emt 0:0:24]} 20. d5 {[%emt 0:0:20]} Nh5 {[%emt 0:0:18]} 21. Bh2 {[%emt 0:0:7]} Nhf4 {[%emt 0:0:1]} 22. Nf1 {[%emt 0:0:16]
} c6 {[%emt 0:0:17]} 23. dxc6 {[%emt 0:0:11]} Rxc6 {[%emt 0:0:0]} 24. Qd2 {[%emt 0:0:28]} Rxc1 {[%emt 0:0:13]} 25. Qxc1 {[%emt 0:0:7]} Qf6 {[%emt 0:0:1]} 26. Qd1 {[%emt 0:0:44]} Qxb2 {[%emt 0:0:10]} 27. Ne3 {[%emt 0:0:1]
} Bxe4 {[%emt 0:0:8]} 28. h4 {[%emt 0:0:8]} Bxe3 {[%emt 0:0:0]} 29. Rxe3 {[%emt 0:0:3]} Rc8 {[%emt 0:0:3]} 30. Re1 {[%emt 0:0:7]} Bxf3 {[%emt 0:0:16]} 31. Qxf3 {[%emt 0:0:6]} Rc3 {[%emt 0:0:3]} 32. Re3 {[%emt 0:0:2]
} Rc1+ {[%emt 0:0:3]} 33. Bd1 {[%emt 0:0:2]} Nxh4 {[%emt 0:0:0]} 34. Qg4 {[%emt 0:0:3]} Qa1 {[%emt 0:0:3]} 35. Bxf4 {[%emt 0:0:1]} Rxd1+ {[%emt 0:0:1]} 36. Kh2 {[%emt 0:0:1]} Rh1+ {[%emt 0:0:2]} 37. Kg3 {[%emt 0:0:1]
} Qf6 {[%emt 0:0:2]} 38. Re4 {[%emt 0:0:3]} Nf5+ {[%emt 0:0:0]} 39. Kf3 {[%emt 0:0:2]} Nd4+ {[%emt 0:0:1]} 40. Ke3 {[%emt 0:0:2]} Re1+ {[%emt 0:0:3]} 41. Kd3 {[%emt 0:0:1]} Rxe4 {[%emt 0:0:2]} 42. Kxe4 {[%emt 0:0:1]
} Qxf4+ {[%emt 0:0:2]} 43. Qxf4 {[%emt 0:0:1]} gxf4 {[%emt 0:0:0]} 44. Kxd4 {[%emt 0:0:0]} Kf6 {[%emt 0:0:1]} 45. Kd5 {[%emt 0:0:1]} Ke7 {[%emt 0:0:1]} 46. Kc6 {[%emt 0:0:1]} b4 {[%emt 0:0:1]} 47. Kb6 {[%emt 0:0:0]
} b3 {[%emt 0:0:1]} 48. Kxa6 {[%emt 0:0:1]} b2 {[%emt 0:0:0]} 0-1

[Event "FIDE-Online-Steinitz-Memorial-Women"]
[White "Abdumalik, Zhansaya"]
[Black "Lagno, Kateryna"]
[Site "Internet"]
[Round "18"]
[Annotator "ChessBase"]
[Result "1/2-1/2"]
[Date "2020.05.17"]
[WhiteElo "2409"]
[BlackElo "2608"]
[PlyCount "143"]
[TimeControl "180+2"]

1. e4 e5 2. Nf3 {[%emt 0:0:4]} Nc6 {[%emt 0:0:4]} 3. Bb5 {[%emt 0:0:1]} Bb4 {[%emt 0:0:1]} 4. c3 {[%emt 0:0:6]} Ba5 {[%emt 0:0:2]} 5. 0-0 {[%emt 0:0:3]
} Nge7 {[%emt 0:0:2]} 6. d4 {[%emt 0:0:4]} exd4 {[%emt 0:0:0]} 7. Nxd4 {[%emt 0:0:4]} 0-0 {[%emt 0:0:5]} 8. Nxc6 {[%emt 0:0:13]} bxc6 {[%emt 0:0:7]} 9. Bd3 {[%emt 0:0:5]} d5 {[%emt 0:0:2]} 10. Qh5 {[%emt 0:0:8]
} f5 {[%emt 0:0:15]} 11. exd5 {[%emt 0:0:24]} Nxd5 {[%emt 0:0:0]} 12. Bc2 {[%emt 0:0:7]} Bb6 {[%emt 0:0:5]} 13. Nd2 {[%emt 0:0:7]} Nf6 {[%emt 0:0:16]} 14. Qh4 {[%emt 0:0:17]} Ba6 {[%emt 0:0:9]} 15. c4 {[%emt 0:0:0]} Ne4 {[%emt 0:0:7]} 16. Qxd8 {[%emt 0:0:16]} Raxd8 {[%emt 0:0:0]} 17. Nxe4 {[%emt 0:0:4]} fxe4 {[%emt 0:0:7]} 18. b3 {[%emt 0:0:4]} Rxf2 {[%emt 0:0:18]
} 19. Rxf2 {[%emt 0:0:10]} Rf8 {[%emt 0:0:2]} 20. Bf4 {[%emt 0:0:31]
} Rxf4 {[%emt 0:0:10]} 21. Raf1 {[%emt 0:0:1]} Bc8 {[%emt 0:0:0]} 22. g3 {[%emt 0:0:7]} Rxf2 {[%emt 0:0:8]} 23. Rxf2 {[%emt 0:0:1]} Bf5 {[%emt 0:0:3]} 24. Bd1 {[%emt 0:0:9]} e3 {[%emt 0:0:37]} 25. Re2 {[%emt 0:0:7]
} Bg4 {[%emt 0:0:2]} 26. Kf1 {[%emt 0:0:5]} Bxe2+ {[%emt 0:0:0]} 27. Kxe2 {[%emt 0:0:0]} Bd4 {[%emt 0:0:2]} 28. Kd3 {[%emt 0:0:5]} c5 {[%emt 0:0:1]} 29. Bf3 {[%emt 0:0:2]} Kf7 {[%emt 0:0:2]} 30. Be2 {[%emt 0:0:4]
} Ke7 {[%emt 0:0:3]} 31. Bf3 {[%emt 0:0:2]} Kd6 {[%emt 0:0:0]} 32. Be4 {[%emt 0:0:1]} h6 {[%emt 0:0:2]} 33. Bf3 {[%emt 0:0:1]} Ke5 {[%emt 0:0:7]} 34. h3 {[%emt 0:0:2]} Kd6 {[%emt 0:0:3]} 35. Bg4 {[%emt 0:0:0]} Be5 {[%emt 0:0:12]} 36. Kxe3 {[%emt 0:0:1]} Bxg3 {[%emt 0:0:1]} 37. Ke4 {[%emt 0:0:1]} g6 {[%emt 0:0:4]} 38. Be2 {[%emt 0:0:5]} Be5 {[%emt 0:0:4]
} 39. Bg4 {[%emt 0:0:2]} Bd4 {[%emt 0:0:2]} 40. Bf3 {[%emt 0:0:0]} Kc6 {[%emt 0:0:6]} 41. Bg4 {[%emt 0:0:4]} Kb6 {[%emt 0:0:2]} 42. Kd5 {[%emt 0:0:3]} h5 {[%emt 0:0:7]} 43. Be6 {[%emt 0:0:3]} g5 {[%emt 0:0:0]} 44. Ke4 {[%emt 0:0:1]} Ka5 {[%emt 0:0:4]} 45. Bf7 {[%emt 0:0:3]} h4 {[%emt 0:0:3]} 46. Be6 {[%emt 0:0:3]} Kb4 {[%emt 0:0:1]} 47. Kd3 {[%emt 0:0:5]
} Ka3 {[%emt 0:0:2]} 48. Kc2 {[%emt 0:0:4]} Kxa2 {[%emt 0:0:0]} 49. Bf5 {[%emt 0:0:2]} Ka3 {[%emt 0:0:1]} 50. Be6 {[%emt 0:0:2]} Kb4 {[%emt 0:0:2]} 51. Bd7 {[%emt 0:0:0]} a5 {[%emt 0:0:1]} 52. Be6 {[%emt 0:0:0]} Be5 {[%emt 0:0:6]} 53. Bf5 {[%emt 0:0:2]} a4 {[%emt 0:0:3]} 54. bxa4 {[%emt 0:0:2]} Kxc4 {[%emt 0:0:1]} 55. Bd7 {[%emt 0:0:5]} Kb4 {[%emt 0:0:1]
} 56. Bc6 {[%emt 0:0:2]} g4 {[%emt 0:0:7]} 57. hxg4 {[%emt 0:0:0]} Bf4 {[%emt 0:0:3]} 58. Kb2 {[%emt 0:0:4]} c4 {[%emt 0:0:2]} 59. Kc2 {[%emt 0:0:1]} c3 {[%emt 0:0:3]} 60. a5 {[%emt 0:0:1]} Kxa5 {[%emt 0:0:0]} 61. Kxc3 {[%emt 0:0:1]} Kb6 {[%emt 0:0:1]} 62. Be4 {[%emt 0:0:2]} Kc5 {[%emt 0:0:1]} 63. Kd3 {[%emt 0:0:1]} h3 {[%emt 0:0:2]} 64. Ke2 {[%emt 0:0:3]
} Kd4 {[%emt 0:0:2]} 65. Bc6 {[%emt 0:0:1]} Kc5 {[%emt 0:0:0]} 66. Bf3 {[%emt 0:0:1]} Kb5 {[%emt 0:0:1]} 67. Kf2 {[%emt 0:0:2]} c5 {[%emt 0:0:2]} 68. Be2+ {[%emt 0:0:1]} Kb4 {[%emt 0:0:1]} 69. g5 {[%emt 0:0:1]
} Bxg5 {[%emt 0:0:1]} 70. Kg3 {[%emt 0:0:1]} c4 {[%emt 0:0:0]} 71. Bxc4 {[%emt 0:0:1]} Kxc4 {[%emt 0:0:1]} 72. Kxh3 {[%emt 0:0:0]} 1/2-1/2

[Event "FIDE-Online-Steinitz-Memorial-Women"]
[White "Paehtz, Elisabeth"]
[Black "Lei, Tingjie"]
[Site "Internet"]
[Round "18"]
[Annotator "RC"]
[Result "0-1"]
[Date "2020.05.17"]
[WhiteElo "2396"]
[BlackElo "2530"]
[PlyCount "138"]
[TimeControl "180+2"]

1. d4 Nf6 2. Nf3 {[%emt 0:0:6]} d5 {[%emt 0:0:4]} 3. Bf4 {[%emt 0:0:1]} c5 {[%emt 0:0:1]} 4. e3 {[%emt 0:0:2]} Nc6 {[%emt 0:0:1]} 5. Nbd2 {[%emt 0:0:2]
} cxd4 {[%emt 0:0:2]} 6. exd4 {[%emt 0:0:2]} Qb6 {[%emt 0:0:0]} 7. Nb3 {[%emt 0:0:2]} Bf5 {[%emt 0:0:2]} 8. c3 {[%emt 0:0:6]} e6 {[%emt 0:0:1]
} 9. Bd3 {[%emt 0:0:4]} Bxd3 {[%emt 0:0:2]} 10. Qxd3 {[%emt 0:0:1]
} Be7 {[%emt 0:0:2]} 11. 0-0 {[%emt 0:0:1]} 0-0 {[%emt 0:0:0]} 12. Rfe1 {[%emt 0:0:2]} a5 {[%emt 0:0:6]} 13. Rab1 {[%emt 0:0:4]} Ne4 {[%emt 0:0:11]} 14. Nbd2 {[%emt 0:0:2]} Nxd2 {[%emt 0:0:6]} 15. Bxd2 {[%emt 0:0:3]
} a4 {[%emt 0:0:7]} 16. Re2 {[%emt 0:0:9]} Rac8 {[%emt 0:0:0]} 17. Bg5 {[%emt 0:0:2]} h6 {[%emt 0:0:20]} 18. Bxe7 {[%emt 0:0:3]} Nxe7 {[%emt 0:0:2]} 19. a3 {[%emt 0:0:1]} Ng6 {[%emt 0:0:5]} 20. g3 {[%emt 0:0:3]
} Rc7 {[%emt 0:0:28]} 21. h4 {[%emt 0:0:3]} Qd6 {[%emt 0:0:0]} 22. Rbe1 {[%emt 0:0:5]} Rfc8 {[%emt 0:0:15]} 23. h5 {[%emt 0:0:4]} Nf8 {[%emt 0:0:2]} 24. Ne5 {[%emt 0:0:7]} Qd8 {[%emt 0:0:13]} 25. Qf3 {[%emt 0:0:15]
} Qg5 {[%emt 0:0:8]} 26. Nd3 {[%emt 0:0:2]} b6 {[%emt 0:0:0]} 27. Re5 {[%emt 0:0:2]} Qd8 {[%emt 0:0:2]} 28. Qg4 {[%emt 0:0:3]} Nh7 {[%emt 0:0:4]} 29. Nf4 {[%emt 0:0:6]} Nf6 {[%emt 0:0:5]} 30. Qe2 {[%emt 0:0:2]
} Ne4 {[%emt 0:0:5]} 31. Kg2 {[%emt 0:0:1]} Nd6 {[%emt 0:0:0]} 32. Qg4 {[%emt 0:0:11]} Qf6 {[%emt 0:0:7]} 33. Nd3 {[%emt 0:0:8]} Nc4 {[%emt 0:0:5]} 34. R5e2 {[%emt 0:0:3]} Nd6 {[%emt 0:0:10]} 35. Qf4 {[%emt 0:0:12]
} Qxf4 {[%emt 0:0:7]} 36. Nxf4 {[%emt 0:0:1]} Kf8 {[%emt 0:0:0]} 37. Nd3 {[%emt 0:0:1]} Ne4 {[%emt 0:0:6]} 38. f3 {[%emt 0:0:2]} Nf6 {[%emt 0:0:1]} 39. g4 {[%emt 0:0:1]} Ke7 {[%emt 0:0:2]} 40. Kg3 {[%emt 0:0:1]
} Kd6 {[%emt 0:0:2]} 41. Ne5 {[%emt 0:0:4]} Rb7 {[%emt 0:0:0]} 42. Kf4 {[%emt 0:0:7]} Rh8 {[%emt 0:0:5]} 43. Rh2 {[%emt 0:0:7]} Rc7 {[%emt 0:0:1]} 44. Ree2 {[%emt 0:0:2]} Re7 {[%emt 0:0:2]} 45. Reg2 {[%emt 0:0:4]
} Nd7 {[%emt 0:0:2]} 46. g5 {[%emt 0:0:11]} hxg5+ {[%emt 0:0:0]} 47. Ke3 {[%emt 0:0:20]} Nxe5 {[%emt 0:0:2]} 48. dxe5+ {[%emt 0:0:1]} Kxe5 {[%emt 0:0:1]} 49. Rxg5+ {[%emt 0:0:1]} Kf6 {[%emt 0:0:1]} 50. Rhg2 {[%emt 0:0:2]} Rh7 {[%emt 0:0:1]} 51. f4 {[%emt 0:0:1]} Re8 {[%emt 0:0:0]} 52. Kd4 {[%emt 0:0:2]} Reh8 {[%emt 0:0:2]} 53. c4 {[%emt 0:0:8]} Rxh5 {[%emt 0:0:6]} 54. Rxg7 {[%emt 0:0:2]} Rh4 {[%emt 0:0:2]} 55. R7g4 {[%emt 0:0:5]
} Rxg4 {[%emt 0:0:2]} 56. Rxg4 {[%emt 0:0:1]} Rh2 {[%emt 0:0:0]} 57. cxd5 {[%emt 0:0:3]} Rxb2 {[%emt 0:0:2]} 58. dxe6 {[%emt 0:0:0]} fxe6 {[%emt 0:0:2]} 59. Rg8 {[%emt 0:0:11]} Rf2 {[%emt 0:0:3]} 60. Ke4 {[%emt 0:0:8]} Re2+ {[%emt 0:0:1]} 61. Kd4 {[%emt 0:0:2]} Ra2 {[%emt 0:0:2]
} 62. Rf8+ {[%emt 0:0:2]} Kg6 {[%emt 0:0:2]} 63. Rb8 {[%emt 0:0:5]
} Rxa3 {[%emt 0:0:3]} 64. Rxb6 {[%emt 0:0:7]} Kf5 {[%emt 0:0:0]} 65. Rb8 {[%emt 0:0:11]} Ra1 {[%emt 0:0:4]} 66. Rf8+ {[%emt 0:0:2]} Kg4 {[%emt 0:0:1]} 67. Rf6 {[%emt 0:0:3]} a3 {[%emt 0:0:2]} 68. Kc3 {[%emt 0:0:2]
} Rb1 {[%emt 0:0:2]} 69. Rg6+ {[%emt 0:0:10]} Kf3 {[%emt 0:0:0]} 0-1

[Event "FIDE-Online-Steinitz-Memorial-Women"]
[White "Cori T., Deysi"]
[Black "Tan, Zhongyi"]
[Site "Internet"]
[Round "18"]
[Annotator "RC"]
[Result "0-1"]
[Date "2020.05.17"]
[WhiteElo "2391"]
[BlackElo "2510"]
[PlyCount "98"]
[TimeControl "180+2"]

1. d4 Nf6 2. c4 {[%emt 0:0:4]} e6 {[%emt 0:0:4]} 3. Nf3 {[%emt 0:0:3]} d5 {[%emt 0:0:3]} 4. e3 {[%emt 0:0:2]} c5 {[%emt 0:0:7]} 5. cxd5 {[%emt 0:0:0]} exd5 {[%emt 0:0:2]} 6. Nc3 {[%emt 0:0:2]} Nc6 {[%emt 0:0:3]} 7. Be2 {[%emt 0:0:5]} Be6 {[%emt 0:0:8]} 8. 0-0 {[%emt 0:0:2]} c4 {[%emt 0:0:0]} 9. Ne5 {[%emt 0:0:6]} Bd6 {[%emt 0:0:3]} 10. f4 {[%emt 0:0:2]} 0-0 {[%emt 0:0:2]} 11. Bf3 {[%emt 0:0:3]} a6 {[%emt 0:0:6]} 12. Kh1 {[%emt 0:0:7]
} Ne7 {[%emt 0:0:4]} 13. g4 {[%emt 0:0:6]} b5 {[%emt 0:0:8]
} 14. f5 {[%emt 0:0:5]} Bc8 {[%emt 0:0:3]} 15. g5 {[%emt 0:0:2]} Bxe5 {[%emt 0:0:40]
} 16. dxe5 {[%emt 0:0:3]} Nd7 {[%emt 0:0:2]} 17. Nxd5 {[%emt 0:0:7]
} Rb8 {[%emt 0:0:12]} 18. f6 {[%emt 0:1:12]} Nxd5 {[%emt 0:0:0]} 19. fxg7 {[%emt 0:0:2]} Kxg7 {[%emt 0:0:4]} 20. Qxd5 {[%emt 0:0:10]} Qe7 {[%emt 0:0:11]} 21. Bd2 {[%emt 0:0:32]} Kg8 {[%emt 0:0:27]} 22. Bc3 {[%emt 0:0:12]
} Nb6 {[%emt 0:0:15]} 23. Qd6 {[%emt 0:0:2]} Qxd6 {[%emt 0:0:0]} 24. exd6 {[%emt 0:0:2]} Bf5 {[%emt 0:0:6]} 25. Bf6 {[%emt 0:0:5]} Bd3 {[%emt 0:0:2]} 26. Rf2 {[%emt 0:0:3]} Nd7 {[%emt 0:0:3]} 27. Be7 {[%emt 0:0:1]
} Rfc8 {[%emt 0:0:4]} 28. Bd5 {[%emt 0:0:2]} Bg6 {[%emt 0:0:0]} 29. h4 {[%emt 0:0:5]} Rc5 {[%emt 0:0:2]} 30. e4 {[%emt 0:0:2]} Re8 {[%emt 0:0:7]
} 31. Raf1 {[%emt 0:0:4]} Ne5 {[%emt 0:0:17]} 32. d7 {[%emt 0:0:0]} Nxd7 {[%emt 0:0:2]} 33. Bxc5 {[%emt 0:0:2]} Nxc5 {[%emt 0:0:0]} 34. Rxf7 {[%emt 0:0:3]} Bxe4+ {[%emt 0:0:4]} 35. Bxe4 {[%emt 0:0:1]} Rxe4 {[%emt 0:0:1]} 36. Rc7 {[%emt 0:0:3]} Rxh4+ {[%emt 0:0:2]} 37. Kg2 {[%emt 0:0:1]
} Rg4+ {[%emt 0:0:1]} 38. Kh3 {[%emt 0:0:2]} Rxg5 {[%emt 0:0:0]} 39. Re1 {[%emt 0:0:1]} Kf8 {[%emt 0:0:3]} 40. Rxh7 {[%emt 0:0:2]} Nd3 {[%emt 0:0:2]} 41. Re6 {[%emt 0:0:3]} Nf4+ {[%emt 0:0:2]} 42. Kh4 {[%emt 0:0:1]
} Nxe6 {[%emt 0:0:0]} 43. Rh6 {[%emt 0:0:2]} Re5 {[%emt 0:0:0]} 44. Kg4 {[%emt 0:0:1]} Ke7 {[%emt 0:0:1]} 45. Rh7+ {[%emt 0:0:1]} Kd6 {[%emt 0:0:1]} 46. Ra7 {[%emt 0:0:0]} Nc5 {[%emt 0:0:1]} 47. Kf4 {[%emt 0:0:2]
} Re2 {[%emt 0:0:4]} 48. b4 {[%emt 0:0:5]} cxb3 {[%emt 0:0:0]} 49. axb3 {[%emt 0:0:0]} Rb2 {[%emt 0:0:3]} 0-1